fUSD/lending_fUSD_20250214
["ID","MTS","AMOUNT","RATE_DAILY","PERIOD"]
[353089689,1739548249071,-767.33,0.00013863,2]
[353089690,1739548249081,-500.0,0.00013863,2]
[353089691,1739548249091,-500.0,0.00013863,2]
[353089692,1739548249102,-500.0,0.00013863,2]
[353089693,1739548249111,-1162.67,0.00013863,2]
[353089694,1739548249121,-500.0,0.00013863,2]
[353089695,1739548249130,-500.0,0.00013863,2]
[353089696,1739548249140,-610.18,0.00013863,2]
[353089697,1739548249151,-500.0,0.00013863,2]
[353089698,1739548249160,-1021.4,0.00013863,2]
[353089699,1739548249170,-500.0,0.00013863,2]
[353089700,1739548249179,-500.0,0.00013863,2]
[353089701,1739548249188,-532.71,0.00013863,2]
[353089702,1739548249198,-500.0,0.00013863,2]
[353089703,1739548249207,-500.0,0.00013863,2]
[353089704,1739548249217,-500.0,0.00013863,2]
[353089705,1739548249227,-1017.66,0.00013863,2]
[353089706,1739548249238,-527.38,0.00013863,2]
[353089707,1739548249252,-500.0,0.00013863,2]
[353089708,1739548249264,-706.64,0.00013863,2]
[353089709,1739548249274,-500.0,0.00013863,2]
[353089710,1739548249284,-500.0,0.00013863,2]
[353089711,1739548249295,-500.0,0.00013863,2]
[353089712,1739548249305,-500.0,0.00013863,2]
[353089713,1739548249317,-504.95,0.00013863,2]
[353089714,1739548249327,-500.0,0.00013863,2]
[353089715,1739548249338,-500.0,0.00013863,2]
[353089716,1739548249348,-600.48,0.00013863,2]
[353089717,1739548249358,-810.67,0.00013863,2]
[353089718,1739548249368,-500.0,0.00013863,2]
[353089719,1739548249379,-500.0,0.00013863,2]
[353089720,1739548249389,-500.0,0.00013863,2]
[353089721,1739548249399,-570.88,0.00013863,2]
[353089722,1739548249410,-641.47,0.00013863,2]
[353089723,1739548249420,-500.0,0.00013863,2]
[353089724,1739548249430,-709.16,0.00013863,2]
[353089725,1739548249440,-500.0,0.00013863,2]
[353089726,1739548249451,-500.0,0.00013863,2]
[353089727,1739548249462,-500.0,0.00013863,2]
[353089728,1739548249472,-500.0,0.00013863,2]
[353089729,1739548249482,-589.44,0.00013863,2]
[353089730,1739548249494,-500.0,0.00013863,2]
[353089731,1739548249505,-578.02,0.00013863,2]
[353089732,1739548249516,-500.0,0.00013863,2]
[353089733,1739548249527,-500.0,0.00013863,2]
[353089734,1739548249539,-500.0,0.00013863,2]
[353089735,1739548249551,-750.94,0.00013863,2]
[353089736,1739548249562,-673.24,0.00013863,2]
[353089737,1739548249573,-837.5,0.00013863,2]
[353089738,1739548249584,-500.0,0.00013863,2]
[353089739,1739548249595,-500.0,0.00013863,2]
[353089740,1739548249605,-500.0,0.00013863,2]
[353089741,1739548249616,-500.0,0.00013863,2]
[353089742,1739548249627,-500.0,0.00013863,2]
[353089743,1739548249639,-500.0,0.00013863,2]
[353089744,1739548249651,-500.0,0.00013863,2]
[353089745,1739548249662,-520.57,0.00013863,2]
[353089746,1739548249672,-1037.51,0.00013863,2]
[353089747,1739548249683,-500.0,0.00013863,2]
[353089748,1739548249695,-500.0,0.00013863,2]
[353089749,1739548249706,-788.93,0.00013863,2]
[353089750,1739548249716,-500.0,0.00013863,2]
[353089751,1739548249727,-864.23,0.00013863,2]
[353089752,1739548249738,-617.98,0.00013863,2]
[353089753,1739548249748,-877.74,0.00013863,2]
[353089754,1739548249759,-904.47,0.00013863,2]
[353089755,1739548249769,-513.21,0.00013863,2]
[353089756,1739548249780,-500.0,0.00013863,2]
[353089757,1739548249791,-500.0,0.00013863,2]
[353089758,1739548249801,-500.0,0.00013863,2]
[353089759,1739548249812,-500.0,0.00013863,2]
[353089760,1739548249823,-500.0,0.00013863,2]
[353089761,1739548249834,-944.16,0.00013863,2]
[353089762,1739548249845,-543.12,0.00013863,2]
[353089763,1739548249856,-509.50193741,0.00013863,2]
[353089764,1739548249866,-1042.08,0.00013863,2]
[353089765,1739548249877,-154.849231,0.00013863,2]
[353089766,1739548249888,-500.0,0.00013863,2]
[353089767,1739548249899,-500.0,0.00013863,2]
[353089768,1739548249910,-500.0,0.00013863,2]
[353089769,1739548249921,-1310.51,0.00013863,2]
[353089770,1739548249931,-500.0,0.00013863,2]
[353089771,1739548249942,-500.0,0.00013863,2]
[353089772,1739548249952,-673.91,0.00013863,2]
[353089773,1739548249963,-500.0,0.00013863,2]
[353089774,1739548249974,-734.8,0.00013863,2]
[353089775,1739548249984,-546.61,0.00013863,2]
[353089776,1739548249995,-1513.41,0.00013863,2]
[353089777,1739548250006,-500.0,0.00013863,2]
[353089778,1739548250016,-2210.79,0.00013863,2]
[353089779,1739548250027,-500.0,0.00013863,2]
[353089780,1739548250038,-1768.08,0.00013863,2]
[353089781,1739548250048,-1492.61,0.00013863,2]
[353089782,1739548250059,-1151.33,0.00013863,2]
[353089783,1739548250071,-622.24,0.00013863,2]
[353089784,1739548250081,-500.0,0.00013863,2]
[353089785,1739548250090,-1064.36,0.00013863,2]
[353089786,1739548250101,-1796.41,0.00013863,2]
[353089787,1739548250111,-1979.66,0.00013863,2]
[353089788,1739548250121,-500.0,0.00013863,2]
[353089789,1739548250132,-232.4059612,0.00013863,2]
[353089790,1739548250143,-500.0,0.00013863,2]
[353089791,1739548250159,-500.0,0.00013863,2]
[353089792,1739548250175,-616.44,0.00013863,2]
[353089793,1739548250186,-859.81,0.00013863,2]
[353089794,1739548250196,-988.81,0.00013863,2]
[353089795,1739548250207,-557.61,0.00013863,2]
[353089796,1739548250217,-1151.77,0.00013863,2]
[353089797,1739548250227,-941.03,0.00013863,2]
[353089798,1739548250237,-815.21,0.00013863,2]
[353089799,1739548250251,-851.32,0.00013863,2]
[353089800,1739548250261,-500.0,0.00013863,2]
[353089801,1739548250271,-500.0,0.00013863,2]
[353089802,1739548250281,-1906.05,0.00013863,2]
[353089803,1739548250291,-991.62,0.00013863,2]
[353089804,1739548250302,-1635.06,0.00013863,2]
[353089805,1739548250311,-979.35,0.00013863,2]
[353089806,1739548250322,-2170.9,0.00013863,2]
[353089807,1739548250335,-500.0,0.00013863,2]
[353089808,1739548250346,-1517.59,0.00013863,2]
[353089809,1739548250357,-500.0,0.00013863,2]
[353089810,1739548250367,-500.0,0.00013863,2]
[353089811,1739548250379,-954.96,0.00013863,2]
[353089812,1739548250389,-4366.6,0.00013863,2]
[353089813,1739548250400,-500.0,0.00013863,2]
[353089814,1739548250410,-536.41,0.00013863,2]
[353089815,1739548250421,-999.3,0.00013863,2]
[353089816,1739548250432,-717.74,0.00013863,2]
[353089817,1739548250444,-500.0,0.00013863,2]
[353089818,1739548250454,-1092.58,0.00013863,2]
[353089819,1739548250465,-631.13,0.00013863,2]
[353089820,1739548250475,-500.0,0.00013863,2]
[353089821,1739548250486,-500.0,0.00013863,2]
[353089822,1739548250497,-1072.74,0.00013863,2]
[353089823,1739548250508,-1218.97,0.00013863,2]
[353089824,1739548250517,-500.0,0.00013863,2]
[353089825,1739548250528,-906.86,0.00013863,2]
[353089826,1739548250539,-1431.71,0.00013863,2]
[353089827,1739548250549,-500.0,0.00013863,2]
[353089828,1739548250559,-1500.48,0.00013863,2]
[353089829,1739548250569,-917.61,0.00013863,2]
[353089830,1739548250579,-1343.63,0.00013863,2]
[353089831,1739548250589,-500.0,0.00013863,2]
[353089832,1739548250599,-500.0,0.00013863,2]
[353089833,1739548250609,-759.39,0.00013863,2]
[353089834,1739548250619,-1249.61,0.00013863,2]
[353089835,1739548250631,-998.24,0.00013863,2]
[353089836,1739548250642,-1533.71,0.00013863,2]
[353089837,1739548250653,-500.0,0.00013863,2]
[353089838,1739548250664,-500.0,0.00013863,2]
[353089839,1739548250676,-1333.06,0.00013863,2]
[353089840,1739548250686,-500.0,0.00013863,2]
[353089841,1739548250696,-500.0,0.00013863,2]
[353089842,1739548250707,-1456.62,0.00013863,2]
[353089843,1739548250718,-500.0,0.00013863,2]
[353089844,1739548250728,-2749.06,0.00013863,2]
[353089845,1739548250739,-500.0,0.00013863,2]
[353089846,1739548250749,-500.0,0.00013863,2]
[353089847,1739548250760,-1132.11,0.00013863,2]
[353089848,1739548250770,-8729.54,0.00013863,2]
[353089849,1739548250780,-500.0,0.00013863,2]
[353089850,1739548250791,-756.38,0.00013863,2]
[353089851,1739548250801,-1241.63,0.00013863,2]
[353089852,1739548250812,-741.08,0.00013863,2]
[353089853,1739548250822,-835.42,0.00013863,2]
[353089854,1739548250832,-1544.84,0.00013863,2]
[353089855,1739548250848,-866.9,0.00013863,2]
[353089856,1739548250859,-500.0,0.00013863,2]
[353089857,1739548250869,-500.0,0.00013863,2]
[353089858,1739548250879,-500.0,0.00013863,2]
[353089859,1739548250892,-500.0,0.00013863,2]
[353089860,1739548250902,-1579.95,0.00013863,2]
[353089861,1739548250912,-560.92,0.00013863,2]
[353089862,1739548250924,-936.28,0.00013863,2]
[353089863,1739548250934,-500.0,0.00013863,2]
[353089864,1739548250944,-1044.67,0.00013863,2]
[353089865,1739548250954,-500.0,0.00013863,2]
[353089866,1739548250964,-2242.19,0.00013863,2]
[353089867,1739548250974,-817.13,0.00013863,2]
[353089868,1739548250984,-2304.98,0.00013863,2]
[353089869,1739548250994,-500.0,0.00013863,2]
[353089870,1739548251004,-1622.0,0.00013863,2]
[353089871,1739548251014,-500.0,0.00013863,2]
[353089872,1739548251026,-1596.05,0.00013863,2]
[353089873,1739548251036,-510.82,0.00013863,2]
[353089874,1739548251048,-500.0,0.00013863,2]
[353089875,1739548251058,-1710.8,0.00013863,2]
[353089876,1739548251068,-2143.64,0.00013863,2]
[353089877,1739548251079,-2601.08,0.00013863,2]
[353089878,1739548251090,-500.0,0.00013863,2]
[353089879,1739548251102,-500.0,0.00013863,2]
[353089880,1739548251113,-1492.38,0.00013863,2]
[353089881,1739548251124,-540.27,0.00013863,2]
[353089882,1739548251135,-916.79,0.00013863,2]
[353089883,1739548251146,-500.0,0.00013863,2]
[353089884,1739548251157,-607.33,0.00013863,2]
[353089885,1739548251169,-1897.27,0.00013863,2]
[353089886,1739548251181,-1891.84,0.00013863,2]
[353089887,1739548251192,-673.18,0.00013863,2]
[353089888,1739548251202,-1009.69,0.00013863,2]
[353089889,1739548251215,-4821.35,0.00013863,2]
[353089890,1739548251226,-532.89,0.00013863,2]
[353089891,1739548251236,-500.0,0.00013863,2]
[353089892,1739548251252,-1485.12,0.00013863,2]
[353089893,1739548251263,-1836.25,0.00013863,2]
[353089894,1739548251273,-500.0,0.00013863,2]
[353089895,1739548251283,-1461.42,0.00013863,2]
[353089896,1739548251294,-934.94,0.00013863,2]
[353089897,1739548251305,-1421.4,0.00013863,2]
[353089898,1739548251315,-1854.8,0.00013863,2]
[353089899,1739548251325,-500.0,0.00013863,2]
[353089900,1739548251335,-500.0,0.00013863,2]
[353089901,1739548251346,-500.0,0.00013863,2]
[353089902,1739548251356,-500.0,0.00013863,2]
[353089903,1739548251369,-500.0,0.00013863,2]
[353089904,1739548251381,-1804.85,0.00013863,2]
[353089905,1739548251392,-1259.2,0.00013863,2]
[353089906,1739548251402,-2334.72,0.00013863,2]
[353089907,1739548251412,-500.0,0.00013863,2]
[353089908,1739548251423,-1385.43,0.00013863,2]
[353089909,1739548251434,-2123.41,0.00013863,2]
[353089910,1739548251444,-500.0,0.00013863,2]
[353089911,1739548251455,-500.0,0.00013863,2]
[353089912,1739548251464,-1395.16,0.00013863,2]
[353089913,1739548251474,-2502.99,0.00013863,2]
[353089914,1739548251484,-2498.19,0.00013863,2]
[353089915,1739548251494,-1526.27,0.00013863,2]
[353089916,1739548251505,-1598.05,0.00013863,2]
[353089917,1739548251516,-500.0,0.00013863,2]
[353089918,1739548251526,-810.72,0.00013863,2]
[353089919,1739548251536,-500.0,0.00013863,2]
[353089920,1739548251547,-500.0,0.00013863,2]
[353089921,1739548251558,-1582.89,0.00013863,2]
[353089922,1739548251569,-4553.2,0.00013863,2]
[353089923,1739548251579,-1757.93,0.00013863,2]
[353089924,1739548251590,-568.74,0.00013863,2]
[353089925,1739548251600,-500.0,0.00013863,2]
[353089926,1739548251610,-1448.18,0.00013863,2]
[353089927,1739548251620,-500.0,0.00013863,2]
[353089928,1739548251631,-500.0,0.00013863,2]
[353089929,1739548251641,-1118.01,0.00013863,2]
[353089930,1739548251651,-500.0,0.00013863,2]
[353089931,1739548251662,-500.0,0.00013863,2]
[353089932,1739548251678,-1885.67,0.00013863,2]
[353089933,1739548251688,-538.82,0.00013863,2]
[353089934,1739548251701,-500.0,0.00013863,2]
[353089935,1739548251711,-1655.01,0.00013863,2]
[353089936,1739548251720,-1953.82,0.00013863,2]
[353089937,1739548251731,-500.0,0.00013863,2]
[353089938,1739548251741,-500.0,0.00013863,2]
[353089939,1739548251752,-2850.6,0.00013863,2]
[353089940,1739548251762,-1727.3,0.00013863,2]
[353089941,1739548251772,-805.16,0.00013863,2]
[353089942,1739548251782,-1867.08,0.00013863,2]
[353089943,1739548251793,-704.67,0.00013863,2]
[353089944,1739548251804,-2297.29,0.00013863,2]
[353089945,1739548251814,-500.0,0.00013863,2]
[353089946,1739548251824,-500.0,0.00013863,2]
[353089947,1739548251835,-500.0,0.00013863,2]
[353089948,1739548251847,-331.00461989,0.00013863,2]
[353089949,1739548252109,-500.0,0.00013863,2]
[353089950,1739548252122,-500.0,0.00013863,2]
[353089951,1739548252133,-1270.98,0.00013863,2]
[353089952,1739548252143,-500.0,0.00013863,2]
[353089953,1739548252153,-500.0,0.00013863,2]
[353089954,1739548252163,-500.0,0.00013863,2]
[353089955,1739548252173,-2437.8,0.00013863,2]
[353089956,1739548252184,-1057.29,0.00013863,2]
[353089957,1739548252195,-528.75,0.00013863,2]
[353089958,1739548252206,-547.72649209,0.00013863,2]
[353089959,1739548252219,-500.0,0.00013863,2]
[353089960,1739548252228,-500.0,0.00013863,2]
[353089961,1739548252239,-588.67,0.00013863,2]
[353089962,1739548252252,-500.0,0.00013863,2]
[353089963,1739548252262,-663.06,0.00013863,2]
[353089964,1739548252271,-1920.38,0.00013863,2]
[353089965,1739548252280,-1885.05,0.00013863,2]
[353089966,1739548252291,-1624.39,0.00013863,2]
[353089967,1739548252301,-500.0,0.00013863,2]
[353089968,1739548252311,-2367.4,0.00013863,2]
[353089969,1739548252321,-827.32,0.00013863,2]
[353089970,1739548252331,-554.75,0.00013863,2]
[353089971,1739548252341,-1300.0,0.000139,5]
[353089972,1739548252350,-500.0,0.00013915,2]
[353089973,1739548252359,-514.644474,0.00013945,2]
[353089974,1739548252369,-735.533849,0.00013945,2]
[353089975,1739548252378,-500.0,0.00013945,2]
[353089976,1739548252388,-500.0,0.00013945,2]
[353089977,1739548252397,-500.0,0.00013945,2]
[353089978,1739548252407,-500.0,0.00013945,2]
[353089979,1739548252417,-500.0,0.00013945,2]
[353089980,1739548252427,-500.0,0.00013945,2]
[353089981,1739548252438,-500.0,0.00013945,2]
[353089982,1739548252447,-500.0,0.00013945,2]
[353089983,1739548252456,-500.0,0.00013945,2]
[353089984,1739548252466,-500.0,0.00013945,2]
[353089985,1739548252476,-500.0,0.00013945,2]
[353089986,1739548252485,-500.0,0.00013945,2]
[353089987,1739548252495,-500.0,0.00013945,2]
[353089988,1739548252504,-500.0,0.00013945,2]
[353089989,1739548252514,-500.0,0.00013945,2]
[353089990,1739548252524,-500.0,0.00013945,2]
[353089991,1739548252533,-500.0,0.00013945,2]
[353089992,1739548252543,-500.0,0.00013945,2]
[353089993,1739548252553,-500.0,0.00013945,2]
[353089994,1739548252563,-500.0,0.00013945,2]
[353089995,1739548252573,-500.0,0.00013945,2]
[353089996,1739548252583,-500.0,0.00013945,2]
[353089997,1739548252593,-500.0,0.00013945,2]
[353089998,1739548252603,-500.0,0.00013945,2]
[353089999,1739548252613,-500.0,0.00013945,2]
[353090000,1739548252622,-500.0,0.00013945,2]
[353090001,1739548252632,-500.0,0.00013945,2]
[353090002,1739548252641,-642.57,0.00013945,2]
[353090003,1739548252651,-500.0,0.00013945,2]
[353090004,1739548252662,-500.0,0.00013945,2]
[353090005,1739548252672,-500.0,0.00013945,2]
[353090006,1739548252682,-554.21,0.00013945,2]
[353090007,1739548252692,-612.38,0.00013945,2]
[353090008,1739548252701,-500.0,0.00013945,2]
[353090009,1739548252711,-500.0,0.00013945,2]
[353090010,1739548252720,-500.0,0.00013945,2]
[353090011,1739548252730,-500.0,0.00013945,2]
[353090012,1739548252741,-500.0,0.00013945,2]
[353090013,1739548252751,-994.12,0.00013945,2]
[353090014,1739548252762,-500.0,0.00013945,2]
[353090015,1739548252774,-500.0,0.00013945,2]
[353090016,1739548252784,-500.0,0.00013945,2]
[353090017,1739548252795,-500.0,0.00013945,2]
[353090018,1739548252806,-500.0,0.00013945,2]
[353090019,1739548252815,-500.0,0.00013945,2]
[353090020,1739548252825,-1030.56,0.00013945,2]
[353090021,1739548252835,-766.85,0.00013945,2]
[353090022,1739548252845,-500.0,0.00013945,2]
[353090023,1739548252857,-500.0,0.00013945,2]
[353090024,1739548252867,-500.0,0.00013945,2]
[353090025,1739548252877,-500.0,0.00013945,2]
[353090026,1739548252887,-500.0,0.00013945,2]
[353090027,1739548252896,-500.0,0.00013945,2]
[353090028,1739548252906,-558.25,0.00013945,2]
[353090029,1739548252916,-500.0,0.00013945,2]
[353090030,1739548252926,-605.63,0.00013945,2]
[353090031,1739548252936,-500.0,0.00013945,2]
[353090032,1739548252947,-500.0,0.00013945,2]
[353090033,1739548252956,-511.36,0.00013945,2]
[353090034,1739548252969,-500.0,0.00013945,2]
[353090035,1739548252978,-732.45,0.00013945,2]
[353090036,1739548252988,-500.19,0.00013945,2]
[353090037,1739548252999,-500.0,0.00013945,2]
[353090038,1739548253009,-770.57,0.00013945,2]
[353090039,1739548253019,-500.0,0.00013945,2]
[353090040,1739548253030,-500.0,0.00013945,2]
[353090041,1739548253039,-500.0,0.00013945,2]
[353090042,1739548253048,-617.76071853,0.00013945,2]
[353090043,1739548253060,-500.0,0.00013945,2]
[353090044,1739548253071,-506.45,0.00013945,2]
[353090045,1739548253080,-500.0,0.00013945,2]
[353090046,1739548253091,-853.05,0.00013945,2]
[353090047,1739548253101,-500.0,0.00013945,2]
[353090048,1739548253111,-500.0,0.00013945,2]
[353090049,1739548253120,-500.0,0.00013945,2]
[353090050,1739548253131,-500.0,0.00013945,2]
[353090051,1739548253141,-526.78,0.00013945,2]
[353090052,1739548253153,-500.0,0.00013945,2]
[353090053,1739548253164,-500.0,0.00013945,2]
[353090054,1739548253173,-500.0,0.00013945,2]
[353090055,1739548253183,-512.18,0.00013945,2]
[353090056,1739548253192,-572.1,0.00013945,2]
[353090057,1739548253203,-500.0,0.00013945,2]
[353090058,1739548253213,-516.8,0.00013945,2]
[353090059,1739548253224,-852.41,0.00013945,2]
[353090060,1739548253236,-500.0,0.00013945,2]
[353090061,1739548253248,-500.0,0.00013945,2]
[353090062,1739548253259,-500.0,0.00013945,2]
[353090063,1739548253268,-500.0,0.00013945,2]
[353090064,1739548253277,-500.0,0.00013945,2]
[353090065,1739548253287,-500.0,0.00013945,2]
[353090066,1739548253298,-500.0,0.00013945,2]
[353090067,1739548253309,-500.0,0.00013945,2]
[353090068,1739548253319,-500.0,0.00013945,2]
[353090069,1739548253330,-550.47,0.00013945,2]
[353090070,1739548253341,-627.25,0.00013945,2]
[353090071,1739548253350,-1312.45,0.00013945,2]
[353090072,1739548253359,-500.0,0.00013945,2]
[353090073,1739548253369,-813.49,0.00013945,2]
[353090074,1739548253379,-767.33,0.00013945,2]
[353090075,1739548253389,-500.0,0.00013945,2]
[353090076,1739548253398,-500.0,0.00013945,2]
[353090077,1739548253408,-500.0,0.00013945,2]
[353090078,1739548253418,-1162.67,0.00013945,2]
[353090079,1739548253427,-500.0,0.00013945,2]
[353090080,1739548253437,-500.0,0.00013945,2]
[353090081,1739548253447,-610.18,0.00013945,2]
[353090082,1739548253456,-500.0,0.00013945,2]
[353090083,1739548253466,-1021.4,0.00013945,2]
[353090084,1739548253475,-500.0,0.00013945,2]
[353090085,1739548253485,-500.0,0.00013945,2]
[353090086,1739548253494,-532.71,0.00013945,2]
[353090087,1739548253504,-500.0,0.00013945,2]
[353090088,1739548253515,-627.39305322,0.00013945,2]
[353090089,1739548253525,-500.0,0.00013945,2]
[353090090,1739548253534,-1017.66,0.00013945,2]
[353090091,1739548253544,-527.38,0.00013945,2]
[353090092,1739548253555,-706.64,0.00013945,2]
[353090093,1739548253565,-500.0,0.00013945,2]
[353090094,1739548253575,-500.0,0.00013945,2]
[353090095,1739548253585,-500.0,0.00013945,2]
[353090096,1739548253595,-500.0,0.00013945,2]
[353090097,1739548253604,-500.0,0.00013945,2]
[353090098,1739548253613,-504.95,0.00013945,2]
[353090099,1739548253623,-500.0,0.00013945,2]
[353090100,1739548253633,-500.0,0.00013945,2]
[353090101,1739548253642,-600.48,0.00013945,2]
[353090102,1739548253653,-810.67,0.00013945,2]
[353090103,1739548253663,-500.0,0.00013945,2]
[353090104,1739548253672,-500.0,0.00013945,2]
[353090105,1739548253682,-500.0,0.00013945,2]
[353090106,1739548253692,-570.88,0.00013945,2]
[353090107,1739548253701,-641.47,0.00013945,2]
[353090108,1739548253711,-500.0,0.00013945,2]
[353090109,1739548253721,-709.16,0.00013945,2]
[353090110,1739548253730,-500.0,0.00013945,2]
[353090111,1739548253740,-500.0,0.00013945,2]
[353090112,1739548253749,-500.0,0.00013945,2]
[353090113,1739548253759,-500.0,0.00013945,2]
[353090114,1739548253768,-589.44,0.00013945,2]
[353090115,1739548253778,-248.68712012,0.00013945,2]
[353090116,1739548253787,-578.02,0.00013945,2]
[353090117,1739548253797,-500.0,0.00013945,2]
[353090118,1739548253808,-500.0,0.00013945,2]
[353090119,1739548253817,-500.0,0.00013945,2]
[353090120,1739548253829,-750.94,0.00013945,2]
[353090121,1739548253839,-673.24,0.00013945,2]
[353090122,1739548253850,-837.5,0.00013945,2]
[353090123,1739548253861,-500.0,0.00013945,2]
[353090124,1739548253870,-500.0,0.00013945,2]
[353090125,1739548253880,-500.0,0.00013945,2]
[353090126,1739548253889,-500.0,0.00013945,2]
[353090127,1739548253900,-500.0,0.00013945,2]
[353090128,1739548253910,-500.0,0.00013945,2]
[353090129,1739548253920,-485.89419282,0.00013945,2]
[353090130,1739548253931,-520.57,0.00013945,2]
[353090131,1739548253942,-1037.51,0.00013945,2]
[353090132,1739548253952,-500.0,0.00013945,2]
[353090133,1739548253963,-500.0,0.00013945,2]
[353090134,1739548253973,-788.93,0.00013945,2]
[353090135,1739548253983,-500.0,0.00013945,2]
[353090136,1739548253992,-864.23,0.00013945,2]
[353090137,1739548254002,-617.98,0.00013945,2]
[353090138,1739548254012,-877.74,0.00013945,2]
[353090139,1739548254022,-904.47,0.00013945,2]
[353090140,1739548254031,-513.21,0.00013945,2]
[353090141,1739548254043,-500.0,0.00013945,2]
[353090142,1739548254054,-500.0,0.00013945,2]
[353090143,1739548254064,-500.0,0.00013945,2]
[353090144,1739548254074,-500.0,0.00013945,2]
[353090145,1739548254084,-327.20519668,0.00013945,2]
[353090146,1739548254093,-944.16,0.00013945,2]
[353090147,1739548254103,-543.12,0.00013945,2]
[353090148,1739548254114,-1042.08,0.00013945,2]
[353090149,1739548254125,-500.0,0.00013945,2]
[353090150,1739548254135,-500.0,0.00013945,2]
[353090151,1739548254145,-500.0,0.00013945,2]
[353090152,1739548254156,-1310.51,0.00013945,2]
[353090153,1739548254166,-500.0,0.00013945,2]
[353090154,1739548254176,-500.0,0.00013945,2]
[353090155,1739548254186,-673.91,0.00013945,2]
[353090156,1739548254198,-500.0,0.00013945,2]
[353090157,1739548254207,-734.8,0.00013945,2]
[353090158,1739548254218,-546.61,0.00013945,2]
[353090159,1739548254228,-1513.41,0.00013945,2]
[353090160,1739548254238,-500.0,0.00013945,2]
[353090161,1739548254252,-2210.79,0.00013945,2]
[353090162,1739548254261,-500.0,0.00013945,2]
[353090163,1739548254270,-1768.08,0.00013945,2]
[353090164,1739548254279,-1492.61,0.00013945,2]
[353090165,1739548254289,-1151.33,0.00013945,2]
[353090166,1739548254303,-622.24,0.00013945,2]
[353090167,1739548254313,-500.0,0.00013945,2]
[353090168,1739548254323,-1064.36,0.00013945,2]
[353090169,1739548254334,-1796.41,0.00013945,2]
[353090170,1739548254344,-1979.66,0.00013945,2]
[353090171,1739548254353,-500.0,0.00013945,2]
[353090172,1739548254364,-616.44,0.00013945,2]
[353090173,1739548254373,-500.0,0.00013945,2]
[353090174,1739548254382,-859.81,0.00013945,2]
[353090175,1739548254391,-988.81,0.00013945,2]
[353090176,1739548254401,-557.61,0.00013945,2]
[353090177,1739548254411,-1151.77,0.00013945,2]
[353090178,1739548254422,-941.03,0.00013945,2]
[353090179,1739548254432,-815.21,0.00013945,2]
[353090180,1739548254442,-851.32,0.00013945,2]
[353090181,1739548254452,-348.26,0.00013945,2]
[353090182,1739548254462,-500.0,0.00013945,2]
[353090183,1739548254471,-708.70286953,0.00013945,2]
[353090184,1739548254900,-500.0,0.0001378,2]
[353090185,1739548254912,-1197.34713047,0.00013945,2]
[353090186,1739548254924,-630.86127527,0.00013945,2]
[353090187,1739548254942,-360.75872473,0.00013945,2]
[353090188,1739548254957,-1370.08723527,0.00013945,2]